[Event "Czech Championship 2022"]
[Site "Usti nad Labem"]
[Date "2022.05.14"]
[Round "1.8"]
[White "Krivanek, Vladimir"]
[Black "Kraus, Tomas"]
[Result "0-1"]
[ECO "A09"]
[WhiteElo "2180"]
[BlackElo "2472"]
[Annotator "TA"]
[PlyCount "70"]
[EventDate "2022.05.12"]
[EventType "swiss"]
[EventCountry "CZE"]
[SourceTitle "playchess.com"]
[Source "ChessBase"]
[SourceQuality "1"]
[TimeControl "40/5400+30:1800+30"]

{[%evp 9,70,-83,-39,-52,-21,-17,-15,-13,-22,-14,-29,-9,-18,-17,-26,-104,-91,-91,-79,-143,-129,-140,-132,-248,-147,-158,-78,-95,-101,-341,-336,-336,-334,-327,-326,-313,-327,-332,-323,-321,-302,-479,-475,-539,-504,-625,-602,-608,-596,-781,-660,-1124,-1112,-1113,-1109,-1072,-1048,-6909,-6291,-1545,-1380,-29971,-10551]} 1. Nf3 {[%emt 0:00:04]} d5 {[%emt 0:00:50]} 2. c4 {[%emt 0:00:10]} d4 {[%emt 0:06:05]} 3. b4 {[%emt 0:01:00]} Bg4 {[%emt 0:04:27]} 4. e3 {[%emt 0:07:38]} e5 {[%emt 0:13:51][%cal Be7e5,Be5e4,Be4f3][%mdl 32] [#]} 5. exd4 $146 {[%emt 0:18:42]} ({Predecessor:} 5. h3 Bxf3 6. Qxf3 c6 7. Bb2 Bxb4 8. Qg3 Qf6 9. Qg4 Nd7 10. exd4 exd4 11. Bxd4 Qe7+ 12. Qe2 Ngf6 13. Qxe7+ Bxe7 {½-½ (13) Banusz,T (2595)-Roiz,M (2572) Biel 2014}) 5... e4 {[%emt 0:21:30]} 6. Qe2 {[%emt 0:04:33] A09: Réti Opening: 1 Nf3 d5 2 c4.} Qe7 {[%emt 0:04:22]} (6... Nf6 $5 {[%cal Rf8e7]} 7. Qe3 (7. Nc3 Qe7 $15) 7... Bxb4 $11) 7. h3 {[%emt 0:00:24]} Bh5 {[%emt 0:00:37][%mdl 64] [#] Pin} 8. g4 {[%emt 0:00:15] The position is equal.} exf3 {[%emt 0:00:10][%mdl 64] Pin} 9. Qxe7+ {[%emt 0:00:11]} Bxe7 {[%emt 0:03:08][%cal Bf8e7,Be7f6,Bf6d4][%mdl 32]} 10. gxh5 {[%emt 0:00:09]} Bf6 {[%emt 0:02:19]} 11. Nc3 {[%emt 0:04:17]} Bxd4 {[%emt 0:01:57]} 12. Bd3 {[%emt 0:04:13]} (12. Bb2 $11) 12... Nf6 {[%emt 0:01:54]} 13. O-O {[%emt 0:05:58]} O-O {[%emt 0:05:57]} 14. Ba3 {[%emt 0:01:41]} (14. Rb1 $142) 14... Nbd7 $17 {[%emt 0:02:06]} 15. Rfe1 {[%emt 0:04:14]} Rfe8 {[%emt 0:08:32] Hoping for ...Re5.} ({Inferior is} 15... Nxh5 16. Re4 c5 17. bxc5 Bxc5 18. Bxc5 Nxc5 19. Re3 $15) 16. h6 {[%emt 0:07:00] [#]} (16. Rab1 $17) 16... Ne5 {[%emt 0:01:09]} ({Weaker is} 16... gxh6 17. Rab1) (16... Re5 $1 $19 {[%cal Re5g5] aiming for ...Rg5+.} 17. Rab1 Rg5+ 18. Kh1 Rh5) 17. Bf1 {[%emt 0:00:47]} g5 {[%emt 0:06:17]} (17... Nh5 $142 {And now ...Re6 would win.} 18. Rad1 Re6) 18. Rac1 {[%emt 0:01:37]} c6 {[%emt 0:02:21] Inhibits Nb5. Black is much more active.} 19. Ne4 $2 {[%emt 0:03:34] This costs White the game.} (19. Bb2 $17 {was worth a try.} Rad8 20. Rb1) 19... Nxe4 $19 {[%emt 0:01:47]} 20. Rxe4 {[%emt 0:00:07]} Rad8 {[%emt 0:00:40]} 21. Rce1 {[%emt 0:14:07]} f5 {[%emt 0:00:43]} 22. Rxd4 {[%emt 0:01:37]} Rxd4 {[%emt 0:00:01]} 23. d3 {[%emt 0:02:46] Black must now prevent Bb2.} Rdd8 {[%emt 0:02:01]} 24. Bb2 {[%emt 0:00:52]} Ng6 {[%emt 0:03:38]} 25. Rd1 {[%emt 0:03:10]} (25. Re3 $142) 25... Kf7 {[%emt 0:00:43][%cal Oe8e2]} 26. Bc1 {[%emt 0:02:31]} Nf4 {[%emt 0:01:28] Strongly threatening ...Ne2+.} 27. Be3 {[%emt 0:02:03]} Kg6 {[%emt 0:00:51] ...Ne2+ is the strong threat.} 28. Kh2 {[%emt 0:00:41]} Ne2 {[%emt 0:00:33]} 29. Rd2 {[%emt 0:02:58]} Nd4 {[%emt 0:00:39]} 30. a4 {[%emt 0:00:59]} f4 {[%emt 0:00:24]} 31. Bxd4 {[%emt 0:00:34]} Rxd4 {[%emt 0:00:04]} 32. Rd1 {[%emt 0:01:18] Inhibits Re1.} Kxh6 {[%emt 0:00:27]} 33. b5 {[%emt 0:00:36]} c5 {[%emt 0:00:24]} 34. b6 {[%emt 0:00:46]} a6 {[%emt 0:00:42]} 35. h4 {[%emt 0:00:06]} g4 {[%emt 0:00:17] Weighted Error Value: White=1.13/Black=0.14 (very precise)} 0-1

[Event "Czech Championship 2022"]
[Site "Usti nad Labem"]
[Date "2022.05.14"]
[Round "1.9"]
[White "Cernousek, Lukas"]
[Black "Soucek, Petr"]
[Result "1-0"]
[ECO "E90"]
[WhiteElo "2440"]
[BlackElo "2177"]
[Annotator "TA"]
[PlyCount "115"]
[EventDate "2022.05.12"]
[EventType "swiss"]
[EventCountry "CZE"]
[SourceTitle "playchess.com"]
[Source "ChessBase"]
[SourceQuality "1"]
[TimeControl "40/5400+30:1800+30"]

{[%evp 14,115,45,41,44,48,54,40,56,44,52,49,56,35,25,28,30,25,32,28,41,0,18,23,41,25,47,0,54,54,77,72,114,47,47,47,47,4,25,2,30,19,60,48,48,14,8,0,0,0,0,0,4,0,0,0,0,0,0,0,84,80,130,137,206,193,216,203,191,199,321,305,2125,2125,1872,1329,2018,1656,29972,29973,29974,29977,29977,29978,29989,29988,29988,29989,29989,29990,29990,29991,29991,29992,29992,29993,29993,29994,29995,29996,29996,29997,29997,29998]} 1. d4 {[%emt 0:00:04]} Nf6 {[%emt 0:00:15]} 2. c4 {[%emt 0:00:07]} g6 {[%emt 0:00:14]} 3. Nc3 {[%emt 0:00:07]} Bg7 {[%emt 0:00:06]} 4. e4 {[%emt 0:00:13]} d6 {[%emt 0:00:05]} 5. h3 {[%emt 0:00:22]} O-O {[%emt 0:00:09]} 6. Be3 {[%emt 0:00:06]} c5 {[%emt 0:00:10]} 7. Nf3 {[%emt 0:01:09]} cxd4 {[%emt 0:00:37]} 8. Nxd4 {[%emt 0:00:03]} (8. Qxd4 {[#]} Ng4 $1 9. Qd2 Nxe3 10. Qxe3 Nc6 $15) 8... b6 {[%emt 0:00:23] E90: King's Indian: Classical: Early deviations and 6 h3.} 9. Qd2 {[%emt 0:01:59]} Bb7 {[%emt 0:01:47]} 10. f3 {[%emt 0:00:04]} Nbd7 {[%emt 0:01:03] White is slightly better.} 11. O-O-O {[%emt 0:06:27]} Rc8 {[%emt 0:03:53]} 12. h4 {[%emt 0:15:47]} h5 {[%emt 0:00:52] [#]} 13. Kb1 $146 {[%emt 0:07:50]} (13. Bh6 {is interesting.} Ne5 14. Bxg7 Kxg7 15. b3) ({Predecessor:} 13. Bh6 Ne5 14. g4 e6 15. Bxg7 Kxg7 16. g5 Ne8 17. b3 d5 18. f4 Nd7 19. cxd5 exd5 {1-0 (32) Parligras,M (2575)-Coca,C (2147) Eforie Nord 2022}) 13... Ne5 {[%emt 0:02:02]} 14. b3 {[%emt 0:00:05]} a6 {[%emt 0:06:34]} 15. Be2 {[%emt 0:03:45]} Re8 {[%emt 0:21:34]} 16. Rc1 {[%emt 0:11:46]} e6 {[%emt 0:03:54]} 17. Bg5 {[%emt 0:02:27]} Qc7 {[%emt 0:12:29]} 18. Rhd1 {[%emt 0:02:10]} Nh7 {[%emt 0:14:36]} 19. Be3 {[%emt 0:17:15]} Nf6 {[%emt 0:04:15]} 20. Bg5 {[%emt 0:05:08]} Nh7 {[%emt 0:00:32]} 21. Bh6 {[%emt 0:01:25]} Rcd8 {[%emt 0:03:40]} 22. Bxg7 {[%emt 0:01:48]} Kxg7 {[%emt 0:00:09]} 23. Na4 {[%emt 0:00:10]} (23. g4 $16) 23... Nf6 $14 {[%emt 0:08:10]} 24. Qb4 {[%emt 0:07:27]} Rb8 {[%emt 0:00:58]} 25. Rd2 {[%emt 0:02:17]} Nfd7 {[%emt 0:02:27]} (25... Rec8 $5 {[%cal Rb6b5]}) 26. Qa3 {[%emt 0:08:02]} Nc5 {[%emt 0:02:55]} 27. Nc3 {[%emt 0:00:03]} Rbc8 {[%emt 0:06:48]} 28. Qb2 {[%emt 0:00:53] b4 is the strong threat.} Kg8 {[%emt 0:00:26]} 29. b4 {[%emt 0:03:36]} Ncd7 {[%emt 0:00:08] [#]} 30. Ndb5 $1 {[%emt 0:00:06]} axb5 {[%emt 0:00:16]} 31. Nxb5 {[%emt 0:00:02]} Qb8 {[%emt 0:00:53][%cal Od6d5] White must now prevent ...d5!} 32. Nxd6 {[%emt 0:00:03] Strongly threatening f4.} Rc7 $1 {[%emt 0:02:04]} 33. Nxe8 {[%emt 0:02:54]} Qxe8 {[%emt 0:00:09]} 34. Rcd1 {[%emt 0:00:52]} Qe7 {[%emt 0:01:17]} 35. g3 {[%emt 0:00:29]} f6 {[%emt 0:01:12]} 36. a3 {[%emt 0:00:50]} Nf8 {[%emt 0:00:33]} (36... Nc6 $11 {keeps the balance.}) 37. Qd4 $16 {[%emt 0:00:32] White stays focused until the end.} Ba6 {[%emt 0:00:31]} (37... Ned7 $142) 38. b5 {[%emt 0:00:31]} ({Don't take} 38. Qxb6 Bxc4 39. Rc1 Rb7 $14) 38... Bb7 {[%emt 0:00:30]} (38... Rd7 $16 39. Qb2 (39. Qxb6 Bxb5 40. Rxd7 Bxd7 $16) 39... Bb7) 39. Qxb6 $18 {[%emt 0:00:30]} Nxc4 {[%emt 0:00:31]} 40. Bxc4 {[%emt 0:00:15]} Rxc4 {[%emt 0:00:08]} 41. Rd8 {[%emt 0:09:43][%cal Od1d7] And now R1d7! would win.} Bc8 {[%emt 0:12:23] Inhibits R1d7.} (41... Kf7 $142 42. Kb2 f5) 42. Qd6 {[%emt 0:09:49]} Qf7 {[%emt 0:01:19]} (42... Kf7 43. Rc1 Qxd6 44. Rxd6 Rxc1+ 45. Kxc1 Ke7) 43. Rc1 {[%emt 0:10:22]} Rxc1+ {[%emt 0:01:23]} 44. Kxc1 {[%emt 0:00:00]} Bb7 {[%emt 0:02:00]} 45. a4 {[%emt 0:01:04] Hoping for a5.} e5 {[%emt 0:01:14]} 46. Kb2 {[%emt 0:00:11] White mates.} f5 {[%emt 0:00:53]} 47. a5 {[%emt 0:01:10]} fxe4 {[%emt 0:00:52]} 48. a6 {[%emt 0:00:19]} ({Stronger than} 48. Rxf8+ Qxf8 49. Qxg6+ Kh8 $11) 48... exf3 {[%emt 0:01:02]} 49. Rxf8+ {[%emt 0:01:23][%mdl 64] Promotion} Qxf8 {[%emt 0:00:07]} 50. Qxf8+ {[%emt 0:00:05]} Kxf8 {[%emt 0:00:08]} 51. axb7 {[%emt 0:00:04] KP-KP} f2 {[%emt 0:00:02]} 52. b8=Q+ {[%emt 0:00:09]} Kf7 {[%emt 0:00:03]} 53. Qa7+ {[%emt 0:00:07]} Ke6 {[%emt 0:00:07]} 54. Qxf2 {[%emt 0:00:06]} Kd5 {[%emt 0:00:01]} 55. Kc3 {[%emt 0:00:18]} Ke4 {[%emt 0:00:13]} 56. b6 {[%emt 0:01:04]} Kd5 {[%emt 0:00:09]} 57. b7 {[%emt 0:00:10]} Ke4 {[%emt 0:00:04]} 58. b8=Q {[%emt 0:00:13] Weighted Error Value: White=0.08 (flawless) /Black=0.29 (precise)} 1-0

[Event "Czech Championship 2022"]
[Site "Usti nad Labem"]
[Date "2022.05.14"]
[Round "1.10"]
[White "Horak, Jiri"]
[Black "Rasik, Vitezslav"]
[Result "1/2-1/2"]
[ECO "B08"]
[WhiteElo "2161"]
[BlackElo "2433"]
[Annotator "TA"]
[PlyCount "108"]
[EventDate "2022.05.12"]
[EventType "swiss"]
[EventCountry "CZE"]
[SourceTitle "playchess.com"]
[Source "ChessBase"]
[SourceQuality "1"]
[TimeControl "40/5400+30:1800+30"]

{[%evp 19,108,8,32,-27,-14,-23,7,0,0,0,0,-19,-16,-24,-21,-20,-16,-15,-15,-22,-19,-14,-12,-16,-11,-14,-14,-50,-41,-41,-4,-33,0,-40,-33,-37,-33,-42,-48,-59,-11,-20,0,-40,-34,-40,-35,-95,-94,-89,-72,-79,0,0,0,0,0,0,0,0,0,0,0,0,0,0,0,-8,-8,-8,-8,-8,-8,-8,-8,-8,-8,-8,-8,-8,-8,-8,-8,-8,-8,-8,0,-8,-8,-8,-8]} 1. d4 {[%emt 0:00:03]} d6 {[%emt 0:00:18]} 2. e4 {[%emt 0:00:12]} g6 {[%emt 0:00:21]} 3. Nf3 {[%emt 0:00:11]} Nf6 {[%emt 0:00:20]} 4. Nc3 {[%emt 0:00:57]} Bg7 {[%emt 0:00:10]} 5. Bc4 {[%emt 0:01:03]} O-O {[%emt 0:00:34]} 6. O-O {[%emt 0:01:43]} Nxe4 {[%emt 0:02:14]} 7. Nxe4 {[%emt 0:00:09]} d5 {[%emt 0:00:10]} 8. Bd3 {[%emt 0:00:31]} dxe4 {[%emt 0:00:12]} 9. Bxe4 {[%emt 0:00:07]} Nd7 {[%emt 0:00:27]} 10. c3 {[%emt 0:04:14]} c5 $1 {[%emt 0:02:47] The main line 10...c5 scores better than 10...Nf6.} 11. dxc5 {[%emt 0:03:26] B08: Pirc Defence: Classical System.} (11. Bc2 $14) 11... Nxc5 $11 {[%emt 0:02:30] [#] Threatens to win with ...Qxd1.} 12. Bc2 {[%emt 0:01:01] [#]} b6 $146 {[%emt 0:07:20]} (12... Qc7 {feels hotter.} 13. Ng5 b6 14. Qf3 Bb7) ({Predecessor:} 12... Qc7 13. Be3 b6 14. Bxc5 Qxc5 15. Be4 Rb8 16. Qe2 f5 17. Bc2 e5 18. Rad1 Kh8 19. Qe3 Qxe3 20. fxe3 Ba6 21. Rfe1 {1-0 (79) Jaracz,B (2230)-Chojnacki,K (2367) Trzcianka 2018}) 13. Bf4 {[%emt 0:06:34]} Bb7 {[%emt 0:03:47][%cal Bc8b7,Bb7d5,Bd5c6][%mdl 32]} 14. Re1 {[%emt 0:00:59]} e6 {[%emt 0:13:05]} 15. Qxd8 {[%emt 0:04:55]} Rfxd8 {[%emt 0:04:15]} 16. Rad1 {[%emt 0:00:19] Inhibits Nd3.} Bd5 {[%emt 0:07:49]} 17. a3 {[%emt 0:01:04]} Bc6 {[%emt 0:05:54]} 18. Bg5 {[%emt 0:19:29]} f6 {[%emt 0:10:07] [#] White must now prevent ...Bxf3.} 19. Be3 {[%emt 0:00:48]} e5 {[%emt 0:03:06] Against Nd4} 20. b4 {[%emt 0:05:55]} Rxd1 {[%emt 0:07:25]} 21. Rxd1 {[%emt 0:02:36]} Ba4 {[%emt 0:03:40]} 22. Bxa4 {[%emt 0:19:09]} Nxa4 {[%emt 0:00:04]} 23. Rc1 {[%emt 0:02:30]} Kf7 {[%emt 0:06:06]} 24. Kf1 {[%emt 0:01:12]} Ke6 {[%emt 0:01:06]} 25. Ke2 {[%emt 0:00:43]} Bf8 {[%emt 0:01:09]} 26. Rc2 {[%emt 0:02:10]} a5 {[%emt 0:02:39]} 27. Bd2 {[%emt 0:00:32]} axb4 {[%emt 0:07:13]} 28. cxb4 {[%emt 0:01:59]} Bd6 {[%emt 0:01:06]} 29. Be3 {[%emt 0:01:04]} b5 {[%emt 0:01:14]} (29... Ra7 $15) 30. Nd2 {[%emt 0:01:01]} f5 {[%emt 0:01:58]} 31. f3 {[%emt 0:00:19]} Kd7 {[%emt 0:00:55]} 32. Nb3 {[%emt 0:01:57]} Rc8 {[%emt 0:00:16]} 33. Kd2 {[%emt 0:01:02]} (33. Rxc8 $15 Kxc8 34. g3) 33... Rxc2+ $17 {[%emt 0:00:39]} 34. Kxc2 {[%emt 0:00:07][%mdl 4096] Endgame KBN-KBN} Kc6 {[%emt 0:00:18]} 35. Nd2 {[%emt 0:01:52]} Nb6 {[%emt 0:02:10]} (35... Kd5 $17) 36. Bxb6 $11 {[%emt 0:00:27] The position is equal.} Kxb6 {[%emt 0:00:01] KB-KN} 37. Nb1 {[%emt 0:02:21]} Kc6 {[%emt 0:00:19]} 38. Nc3 {[%emt 0:00:09] Prevents e4.} e4 {[%emt 0:02:19]} 39. fxe4 {[%emt 0:01:45]} Bxh2 {[%emt 0:00:06]} 40. exf5 {[%emt 0:00:15]} gxf5 {[%emt 0:00:07]} 41. a4 {[%emt 0:34:49]} bxa4 {[%emt 0:32:31]} 42. Nxa4 {[%emt 0:00:42]} Bd6 {[%emt 0:00:00]} 43. Kd3 {[%emt 0:00:00]} Bxb4 {[%emt 0:00:00]} 44. Ke3 {[%emt 0:00:00]} Bd6 {[%emt 0:00:00]} 45. Nb2 {[%emt 0:00:00]} Kd5 {[%emt 0:00:00]} 46. Nd3 {[%emt 0:00:00]} Ke6 {[%emt 0:00:00]} 47. Kf3 {[%emt 0:00:00]} h5 {[%emt 0:00:00]} 48. Nf2 {[%emt 0:00:00]} h4 {[%emt 0:00:00]} 49. Nd1 {[%emt 0:00:00]} Bg3 {[%emt 0:00:00]} 50. Nc3 {[%emt 0:00:00]} Ke5 {[%emt 0:00:00]} 51. Ne2 {[%emt 0:00:00]} Be1 {[%emt 0:00:00]} 52. Nf4 {[%emt 0:00:00] Threatening mate with Nd3+.} Kd4 {[%emt 0:00:00] Against Nd3} 53. Ng6 {[%emt 0:00:00]} Bg3 {[%emt 0:00:35]} 54. Nxh4 {[%emt 0:00:00]} Bxh4 {[%emt 0:00:06] Weighted Error Value: White=0.08 (flawless) /Black=0.06 (flawless)} 1/2-1/2

[Event "Czech Championship 2022"]
[Site "Usti nad Labem"]
[Date "2022.05.14"]
[Round "1.11"]
[White "Finek, Vaclav"]
[Black "Bartos, Jan"]
[Result "1-0"]
[ECO "D02"]
[WhiteElo "2410"]
[BlackElo "2125"]
[Annotator "TA"]
[PlyCount "49"]
[EventDate "2022.05.12"]
[EventType "swiss"]
[EventCountry "CZE"]
[SourceTitle "playchess.com"]
[Source "ChessBase"]
[SourceQuality "1"]
[TimeControl "40/5400+30:1800+30"]

{[%evp 9,49,12,14,0,14,21,45,37,72,80,96,96,163,155,159,161,192,180,185,177,208,208,235,231,216,181,185,160,191,193,284,298,414,415,639,636,618,618,2304,952,1626,1110]} 1. d4 {[%emt 0:00:03]} Nf6 {[%emt 0:00:09]} 2. Nf3 {[%emt 0:00:08]} d5 {[%emt 0:00:05]} 3. g3 {[%emt 0:00:05]} c5 {[%emt 0:01:35]} 4. Bg2 {[%emt 0:00:06]} cxd4 {[%emt 0:00:07]} 5. O-O {[%emt 0:00:05]} h6 {[%emt 0:00:13]} 6. a3 {[%emt 0:00:06] D02: 1 d4 d5 2 Nf3 sidelines, including 2...Nf6 3 g3 and 2...Nf6 3 Bf4.} a6 {[%emt 0:02:26] [#]} 7. b4 $146 {[%emt 0:01:53]} ({Much weaker is} 7. Qxd4 Nc6 8. Qa4 Bd7 $15) ({Predecessor:} 7. Nxd4 e5 8. Nf3 Nc6 9. b4 Be6 10. Bb2 Qc7 11. Nbd2 Rc8 12. Rc1 b5 13. Nb3 Bd6 {1-0 (46) Samunenkov,I (1964)-Villa Tornero,A (1641) Bratislava 2019}) 7... Nc6 {[%emt 0:01:37]} 8. Nxd4 {[%emt 0:00:16] White is slightly better.} Nxd4 {[%emt 0:02:09]} 9. Qxd4 {[%emt 0:00:08]} e6 {[%emt 0:02:00]} 10. c4 {[%emt 0:07:05] White is more active.} dxc4 {[%emt 0:09:30] [#]} (10... Be7 $16) 11. Qxd8+ $1 $18 {[%emt 0:15:47]} Kxd8 {[%emt 0:00:06]} 12. Rd1+ {[%emt 0:00:04]} Nd7 {[%emt 0:01:48]} 13. Bb2 {[%emt 0:01:47][%cal Bc1b2,Bb2c3,Bc3a5,Ba5c7,Bc7d6][%mdl 1056] White has strong compensation.} a5 {[%emt 0:10:05] [#]} 14. b5 {[%emt 0:00:20]} a4 {[%emt 0:01:23]} 15. Bc3 {[%emt 0:11:21] Against Ra5} ({But not} 15. Nd2 Ra5) 15... f6 {[%emt 0:05:46]} 16. Nd2 {[%emt 0:00:24]} Bc5 {[%emt 0:02:48]} 17. Nxc4 {[%emt 0:00:37]} Ke7 {[%emt 0:01:49]} 18. Rac1 {[%emt 0:03:02]} Rb8 {[%emt 0:05:44]} 19. Rd3 {[%emt 0:05:05]} Nf8 {[%emt 0:10:12]} (19... b6 $142 20. Bb4 Bxb4) 20. Ba5 {[%emt 0:06:22]} Bd7 {[%emt 0:05:29]} 21. Bc7 {[%emt 0:00:30]} Re8 {[%emt 0:02:24]} (21... Ng6 $142 22. Na5 Bxb5 23. Bxb8 Rxb8 24. Rxc5 Bxd3 25. exd3 Rd8 26. Rc7+ Rd7) 22. Nd6 {[%emt 0:10:56] White is clearly winning.} Bxd6 {[%emt 0:04:43]} 23. Bxd6+ {[%emt 0:00:14]} ({Less strong is} 23. Rxd6 Bxb5 24. Bxb7 Bxe2 $16) 23... Kd8 {[%emt 0:00:42]} 24. Rd2 {[%emt 0:00:45]} (24. Bxb7 $142 Re7 25. b6) 24... Ng6 {[%emt 0:03:28]} 25. Bxb7 {[%emt 0:01:18] Black did not feel at home in the position after the opening.  Weighted Error Value: White=0.07 (flawless) /Black=0.42} 1-0

[Event "Czech Championship 2022"]
[Site "Usti nad Labem"]
[Date "2022.05.14"]
[Round "1.12"]
[White "Delgerdalai, Bayarjavkhlan"]
[Black "Vojta, Jakub"]
[Result "1-0"]
[ECO "D27"]
[WhiteElo "2119"]
[BlackElo "2396"]
[Annotator "TA"]
[PlyCount "77"]
[EventDate "2022.05.12"]
[EventType "swiss"]
[EventCountry "CZE"]
[SourceTitle "playchess.com"]
[Source "ChessBase"]
[SourceQuality "1"]
[TimeControl "40/5400+30:1800+30"]

{[%evp 14,77,8,13,50,55,49,54,83,83,145,104,200,112,116,76,89,60,54,44,25,19,545,395,587,575,525,344,303,325,227,173,223,209,215,27,28,32,57,21,85,82,627,622,1314,1250,1195,553,533,624,601,540,508,509,773,389,6283,1230,29991,29992,29992,29993,29993,29993,29993,29994]} 1. d4 {[%emt 0:00:05]} d5 {[%emt 0:01:42]} 2. c4 {[%emt 0:00:11]} dxc4 {[%emt 0:00:05]} 3. e3 {[%emt 0:01:41]} Nf6 {[%emt 0:00:05]} 4. Bxc4 {[%emt 0:00:12]} e6 {[%emt 0:00:12]} 5. Nf3 {[%emt 0:00:19]} a6 {[%emt 0:00:04]} 6. a4 {[%emt 0:03:05]} c5 {[%emt 0:01:51]} 7. O-O {[%emt 0:00:39]} Nc6 {[%emt 0:00:22]} 8. Nc3 {[%emt 0:01:24]} b6 {[%emt 0:07:41] D27: Queen's Gambit Accepted: Classical main line: 7 e4!? and 7 a4.} 9. d5 {[%emt 0:07:23]} Na5 {[%emt 0:04:48]} 10. Ba2 {[%emt 0:03:06]} c4 {[%emt 0:15:19][%cal Rf6d5] White is slightly better.} 11. e4 {[%emt 0:04:38] [#]} Qc7 $146 {[%emt 0:04:29]} (11... Bb4 $142) ({Predecessor:} 11... exd5 12. e5 Ne4 13. Nxe4 dxe4 14. Qxd8+ Kxd8 15. Ng5 Ke8 16. Nxe4 Bd7 17. Bd2 Nc6 {1-0 (28) Egorov,D (1721)-Karpytchev,V (2043) Ekaterinburg 2019}) 12. Bg5 {[%emt 0:05:04]} Bd6 {[%emt 0:09:19] [#]} (12... Bb4 $16 {was necessary.}) 13. dxe6 {[%emt 0:13:09]} (13. e5 $1 $18 {[%cal Re5f6]} Bxe5 14. Qe1) 13... fxe6 {[%emt 0:03:50]} 14. Qe2 {[%emt 0:13:38] e5 is the strong threat.} Ng4 {[%emt 0:10:11][%cal Rd6h2] Prevents e5.} 15. e5 {[%emt 0:12:24]} Nxe5 {[%emt 0:03:24]} 16. Rfe1 {[%emt 0:10:50][%cal Rf3e5]} ({Much weaker is} 16. Nxe5 Bxe5 17. f4 Bxc3 18. bxc3 O-O $11) (16. Rae1 $5 {[%cal Rf3e5]} Nd3 17. Rd1 $11) 16... Nd3 {[%emt 0:03:37]} 17. Red1 $36 {[%emt 0:00:55][%mdl 2048] [#] Hoping for Ne4. Black is under pressure.} Nb4 $2 {[%emt 0:07:35][%mdl 8192]} (17... O-O $1 $11 {and Black has nothing to worry.}) 18. Ne4 {[%emt 0:01:34]} Be7 {[%emt 0:08:08]} (18... Bxh2+ {keeps fighting.} 19. Nxh2 O-O) 19. Bxe7 $18 {[%emt 0:01:09]} Kxe7 {[%emt 0:00:03]} 20. Qd2 {[%emt 0:01:38]} Nd5 {[%emt 0:00:49]} 21. Qg5+ {[%emt 0:01:40]} Kf8 {[%emt 0:02:00]} 22. Nc3 {[%emt 0:01:39]} Nf6 {[%emt 0:03:15]} (22... Qe7 $142 23. Nxd5 Qxg5 24. Nxg5 exd5) 23. Rd4 {[%emt 0:02:23]} Bb7 {[%emt 0:02:52]} 24. Rad1 $2 {[%emt 0:04:15]} (24. Ne5 $18) 24... Bxf3 $11 {[%emt 0:03:48]} 25. gxf3 {[%emt 0:00:08]} Kf7 {[%emt 0:02:39]} 26. Ne4 {[%emt 0:01:36] aiming for Nxf6.} h6 {[%emt 0:01:39]} (26... Rhd8 $1 $11) 27. Qd2 $16 {[%emt 0:02:23] Black must now prevent Nxf6. White is more active.} Qe5 {[%emt 0:02:18][%mdl 8192]} (27... Nc6 $16 28. Rd6 (28. Rxc4 Rhd8 $14) 28... Rhd8) 28. Nxf6 $18 {[%emt 0:03:46]} gxf6 {[%emt 0:00:14]} 29. Rd7+ {[%emt 0:00:04]} Kg6 {[%emt 0:00:13]} 30. Kh1 {[%emt 0:00:33]} (30. f4 $142 Qh5 31. Qe3 Qg4+ 32. Kh1 Qxd1+ 33. Rxd1) 30... Kh5 {[%emt 0:01:05]} 31. Rg1 {[%emt 0:01:13] Threatening mate with Qd1.} Rag8 {[%emt 0:01:25] Strongly threatening ...Rxg1+.} 32. Rdg7 {[%emt 0:02:30]} Rxg7 {[%emt 0:00:11]} 33. Rxg7 {[%emt 0:00:05]} Qf5 {[%emt 0:01:00]} (33... Nb7 $142 34. Rxb7 Qf5) 34. Kg2 {[%emt 0:01:16]} Rc8 $2 {[%emt 0:00:43]} (34... Nc6 35. Bxc4 Ne5) 35. f4 {[%emt 0:00:42]} (35. Qd7 $142 Rf8 36. Qe7) 35... Qd5+ {[%emt 0:00:29]} 36. Qxd5+ {[%emt 0:00:13] White mates.} exd5 {[%emt 0:00:01]} 37. Bb1 {[%emt 0:00:27]} c3 {[%emt 0:00:37]} 38. Bf5 {[%emt 0:00:52]} cxb2 {[%emt 0:00:40]} 39. Rg3 {[%emt 0:00:28] Weighted Error Value: White=0.58/Black=0.82} 1-0

[Event "Czech Championship 2022"]
[Site "Usti nad Labem"]
[Date "2022.05.14"]
[Round "1.13"]
[White "Rubes, Jan"]
[Black "Hladky, Tadeas"]
[Result "1-0"]
[ECO "B10"]
[WhiteElo "2386"]
[BlackElo "2119"]
[Annotator "TA"]
[PlyCount "29"]
[EventDate "2022.05.12"]
[EventType "swiss"]
[EventCountry "CZE"]
[SourceTitle "playchess.com"]
[Source "ChessBase"]
[SourceQuality "1"]
[TimeControl "40/5400+30:1800+30"]

{[%evp 16,29,33,29,78,71,52,54,62,53,127,139,457,453,1079,205]} 1. c4 {[%emt 0:00:04]} c6 {[%emt 0:00:13]} 2. e4 {[%emt 0:00:13]} d5 {[%emt 0:01:23]} 3. exd5 {[%emt 0:00:19]} cxd5 {[%emt 0:00:49]} 4. cxd5 {[%emt 0:00:21]} Qxd5 {[%emt 0:01:21]} 5. Nc3 {[%emt 0:00:25]} Qa5 {[%emt 0:02:45]} 6. d4 {[%emt 0:02:10]} Nf6 {[%emt 0:01:47]} 7. Nf3 {[%emt 0:00:58]} e6 {[%emt 0:10:05]} 8. Bc4 {[%emt 0:14:41]} Be7 {[%emt 0:05:22]} 9. O-O {[%emt 0:00:25]} Nbd7 {[%emt 0:03:37] B10: Caro-Kann: 2 d3 and 2 c4.} (9... Nc6 $11) 10. Re1 $16 {[%emt 0:03:23] [#] Strongly threatening d5.} O-O {[%emt 0:04:05]} 11. Bg5 {[%emt 0:21:14]} Qd8 {[%emt 0:12:40] [#]} 12. Qe2 $146 {[%emt 0:05:47] White is much more active. The black rooks are badly placed.} ({Predecessor:} 12. Rc1 a6 13. Bd3 b5 14. Bb1 Bb7 15. Qd3 Re8 16. Nd2 h6 17. Bh4 g6 18. Re3 Nd5 19. Bxe7 Nxe7 {0-1 (25) Frank,C (1818)-Krneta,S (1767) Verden 2008}) 12... Nd5 {[%emt 0:19:18]} (12... h6 $14) 13. Bxe7 {[%emt 0:07:38]} ({Don't play} 13. Nxd5 Bxg5 14. Nxg5 Qxg5) 13... Nxc3 $2 {[%emt 0:33:35][%mdl 8192] [#]} (13... Nxe7 $16 14. Bxe6 Nf6) 14. Qxe6 $3 $18 {[%emt 0:39:52][%mdl 512]} Nd5 {[%emt 0:00:30]} (14... fxe6 $142 15. Bxe6+ Kh8 16. Bxd8 Rxd8) (14... Qc7 15. Bd6) 15. Qe2 $2 {White took control after the opening.  Weighted Error Value: White=0.02 (flawless) /Black=1.13} (15. Qxd5 Qc7 16. Bd6) 1-0